fUST/lending_fUST_20250901
["ID","MTS","AMOUNT","RATE_DAILY","PERIOD"]
[382662596,1756698668108,-159.342596,0.00017295,2]
[382662597,1756698668121,-766.44,0.00017295,2]
[382662598,1756698668131,-480.0,0.00017295,2]
[382662599,1756698668140,-524.7,0.00017295,2]
[382662600,1756698668150,-1031.4,0.00017295,2]
[382662601,1756698668159,-480.0,0.00017295,2]
[382662602,1756698668168,-1112.37,0.00017295,2]
[382662603,1756698668177,-716.09,0.00017295,2]
[382662604,1756698668186,-531.45,0.00017295,2]
[382662605,1756698668195,-480.0,0.00017295,2]
[382662606,1756698668205,-480.0,0.00017295,2]
[382662607,1756698668214,-989.83,0.00017295,2]
[382662608,1756698668224,-1003.19,0.00017295,2]
[382662609,1756698668233,-480.0,0.00017295,2]
[382662610,1756698668242,-1038.38,0.00017295,2]
[382662611,1756698668251,-480.0,0.00017295,2]
[382662612,1756698668261,-480.0,0.00017295,2]
[382662613,1756698668271,-823.01,0.00017295,2]
[382662614,1756698668280,-480.0,0.00017295,2]
[382662615,1756698668289,-1188.28,0.00017295,2]
[382662616,1756698668298,-480.0,0.00017295,2]
[382662617,1756698668308,-543.66,0.00017295,2]
[382662618,1756698668317,-958.25,0.00017295,2]
[382662619,1756698668326,-689.14,0.00017295,2]
[382662620,1756698668336,-726.77,0.00017295,2]
[382662621,1756698668345,-1267.17,0.00017295,2]
[382662622,1756698668354,-480.0,0.00017295,2]
[382662623,1756698668364,-984.8,0.00017295,2]
[382662624,1756698668373,-575.05,0.00017295,2]
[382662625,1756698668383,-480.0,0.00017295,2]
[382662626,1756698668391,-480.0,0.00017295,2]
[382662627,1756698668401,-480.0,0.00017295,2]
[382662628,1756698668410,-564.48,0.00017295,2]
[382662629,1756698668419,-749.95,0.00017295,2]
[382662630,1756698668428,-886.93,0.00017295,2]
[382662631,1756698668438,-1010.1,0.00017295,2]
[382662632,1756698668447,-480.0,0.00017295,2]
[382662633,1756698668456,-1422.64,0.00017295,2]
[382662634,1756698668465,-480.0,0.00017295,2]
[382662635,1756698668475,-480.0,0.00017295,2]
[382662636,1756698668484,-828.01,0.00017295,2]
[382662637,1756698668493,-480.0,0.00017295,2]
[382662638,1756698668503,-486.34,0.00017295,2]
[382662639,1756698668512,-480.0,0.00017295,2]
[382662640,1756698668521,-480.0,0.00017295,2]
[382662641,1756698668531,-666.57,0.00017295,2]
[382662642,1756698668540,-480.0,0.00017295,2]
[382662643,1756698668550,-608.43,0.00017295,2]
[382662644,1756698668559,-1388.5,0.00017295,2]
[382662645,1756698668568,-480.0,0.00017295,2]
[382662646,1756698668578,-1140.41,0.00017295,2]
[382662647,1756698668587,-637.91,0.00017295,2]
[382662648,1756698668597,-957.9,0.00017295,2]
[382662649,1756698668606,-578.69,0.00017295,2]
[382662650,1756698668615,-736.6,0.00017295,2]
[382662651,1756698668624,-1186.87,0.00017295,2]
[382662652,1756698668634,-629.35,0.00017295,2]
[382662653,1756698668643,-480.0,0.00017295,2]
[382662654,1756698668653,-654.54,0.00017295,2]
[382662655,1756698668662,-543.73,0.00017295,2]
[382662656,1756698668671,-551.46,0.00017295,2]
[382662657,1756698668681,-480.0,0.00017295,2]
[382662658,1756698668690,-706.3,0.00017295,2]
[382662659,1756698668699,-1235.23,0.00017295,2]
[382662660,1756698668708,-480.0,0.00017295,2]
[382662661,1756698668718,-480.0,0.00017295,2]
[382662662,1756698668727,-487.7,0.00017295,2]
[382662663,1756698668737,-480.0,0.00017295,2]
[382662664,1756698668746,-672.25,0.00017295,2]
[382662665,1756698668756,-480.0,0.00017295,2]
[382662666,1756698668766,-480.0,0.00017295,2]
[382662667,1756698668775,-817.97,0.00017295,2]
[382662668,1756698668783,-790.18,0.00017295,2]
[382662669,1756698668793,-1017.43,0.00017295,2]
[382662670,1756698668802,-484.44,0.00017296,2]
[382662671,1756698668812,-480.0,0.00017296,2]
[382662672,1756698668821,-524.64,0.00017296,2]
[382662673,1756698668831,-480.0,0.00017296,2]
[382662674,1756698668840,-483.61624202,0.00017296,2]
[382662675,1756698668850,-1097.43,0.00017296,2]
[382662676,1756698668861,-487.37,0.00017296,2]
[382662677,1756698668871,-480.0,0.00017296,2]
[382662678,1756698668881,-154.173613,0.00017296,2]
[382662679,1756698668891,-480.0,0.00017296,2]
[382662680,1756698668900,-1017.23,0.00017296,2]
[382662681,1756698668910,-799.51,0.00017296,2]
[382662682,1756698668919,-480.0,0.00017296,2]
[382662683,1756698668929,-480.0,0.00017296,2]
[382662684,1756698668938,-602.11,0.00017296,2]
[382662685,1756698668947,-480.0,0.00017296,2]
[382662686,1756698668956,-480.0,0.00017296,2]
[382662687,1756698668966,-480.0,0.00017296,2]
[382662688,1756698668975,-480.0,0.00017296,2]
[382662689,1756698668985,-480.0,0.00017296,2]
[382662690,1756698668994,-647.77,0.00017296,2]
[382662691,1756698669004,-480.0,0.00017296,2]
[382662692,1756698669013,-480.0,0.00017296,2]
[382662693,1756698669024,-480.0,0.00017296,2]
[382662694,1756698669034,-480.0,0.00017296,2]
[382662695,1756698669047,-480.0,0.00017296,2]
[382662696,1756698669056,-480.0,0.00017296,2]
[382662697,1756698669065,-480.0,0.00017296,2]
[382662698,1756698669075,-480.0,0.00017296,2]
[382662699,1756698669084,-480.0,0.00017296,2]
[382662700,1756698669093,-480.0,0.00017296,2]
[382662701,1756698669102,-480.0,0.00017296,2]
[382662702,1756698669111,-480.0,0.00017296,2]
[382662703,1756698669123,-480.0,0.00017296,2]
[382662704,1756698669132,-715.24,0.00017296,2]
[382662705,1756698669142,-275.48352916,0.00017296,2]
[382662706,1756698669151,-151.0,0.00017296,2]
[382662707,1756698669160,-151.0,0.00017296,2]
[382662708,1756698669169,-151.763684,0.00017296,2]
[382662709,1756698669179,-480.0,0.00017296,2]
[382662710,1756698669188,-151.0,0.00017296,2]
[382662711,1756698669197,-480.0,0.00017296,2]
[382662712,1756698669207,-157.92674,0.00017296,2]
[382662713,1756698669216,-157.92674,0.00017296,2]
[382662714,1756698669226,-480.0,0.00017296,2]
[382662715,1756698669235,-157.92674,0.00017296,2]
[382662716,1756698669245,-480.0,0.00017296,2]
[382662717,1756698669254,-157.92674,0.00017296,2]
[382662718,1756698669263,-809.58,0.00017296,2]
[382662719,1756698669272,-887.12,0.00017296,2]
[382662720,1756698669281,-480.0,0.00017296,2]
[382662721,1756698669291,-543.41,0.00017296,2]
[382662722,1756698669300,-480.0,0.00017296,2]
[382662723,1756698669310,-259.55646409,0.00017296,2]
[382662724,1756698669319,-151.0,0.00017296,2]
[382662725,1756698669328,-151.0,0.00017296,2]
[382662726,1756698669338,-480.0,0.00017296,2]
[382662727,1756698669347,-480.0,0.00017296,2]
[382662728,1756698669357,-154.456682,0.00017296,2]
[382662729,1756698669366,-480.0,0.00017296,2]
[382662730,1756698669376,-1178.81,0.00017296,2]
[382662731,1756698669386,-879.22,0.00017296,2]
[382662732,1756698669397,-480.0,0.00017296,2]
[382662733,1756698669406,-480.0,0.00017296,2]
[382662734,1756698669416,-543.27,0.00017296,2]
[382662735,1756698669425,-500.0,0.00017296,2]
[382662736,1756698669435,-480.0,0.00017296,2]
[382662737,1756698669444,-480.0,0.00017296,2]
[382662738,1756698669454,-480.0,0.00017296,2]
[382662739,1756698669623,-725.39,0.00017296,2]
[382662740,1756698669633,-661.15,0.00017296,2]
[382662741,1756698669643,-1023.05,0.00017296,2]
[382662742,1756698669652,-654.22,0.00017296,2]
[382662743,1756698669662,-557.18,0.00017296,2]
[382662744,1756698669672,-391.72905702,0.00017296,2]
[382662745,1756698669681,-488.71,0.00017296,2]
[382662746,1756698669691,-480.0,0.00017296,2]
[382662747,1756698669700,-594.58323345,0.00017296,2]
[382662748,1756698669710,-480.0,0.00017296,2]
[382662749,1756698669721,-480.0,0.00017296,2]
[382662750,1756698669730,-480.0,0.00017296,2]
[382662751,1756698669740,-909.72,0.00017296,2]
[382662752,1756698669750,-480.0,0.00017296,2]
[382662753,1756698669761,-951.76,0.00017296,2]
[382662754,1756698669771,-482.32594445,0.00017296,2]
[382662755,1756698669781,-641.9,0.00017296,2]
[382662756,1756698669791,-987.58,0.00017296,2]
[382662757,1756698669800,-480.0,0.00017296,2]
[382662758,1756698669811,-480.0,0.00017296,2]
[382662759,1756698669820,-480.0,0.00017296,2]
[382662760,1756698669830,-535.19,0.00017296,2]
[382662761,1756698669841,-920.63,0.00017296,2]
[382662762,1756698669850,-1658.98,0.00017296,2]
[382662763,1756698669860,-480.0,0.00017296,2]
[382662764,1756698669872,-480.0,0.00017296,2]
[382662765,1756698669881,-231.66720936,0.00017296,2]
[382662766,1756698669891,-480.0,0.00017296,2]
[382662767,1756698669900,-480.0,0.00017296,2]
[382662768,1756698669910,-669.76,0.00017296,2]
[382662769,1756698669920,-657.94,0.00017296,2]
[382662770,1756698669929,-480.0,0.00017296,2]
[382662771,1756698669939,-160.63280761,0.00017296,2]
[382662772,1756698669948,-559.48,0.00017296,2]
[382662773,1756698669958,-480.0,0.00017296,2]
[382662774,1756698669968,-1351.81,0.00017296,2]
[382662775,1756698669977,-480.0,0.00017296,2]
[382662776,1756698669987,-617.74,0.00017296,2]
[382662777,1756698669996,-480.0,0.00017296,2]
[382662778,1756698670006,-480.0,0.00017296,2]
[382662779,1756698670016,-488.84,0.00017296,2]
[382662780,1756698670027,-480.0,0.00017296,2]
[382662781,1756698670041,-794.32,0.00017296,2]
[382662782,1756698670051,-480.0,0.00017296,2]
[382662783,1756698670061,-806.86,0.00017296,2]
[382662784,1756698670071,-480.0,0.00017296,2]
[382662785,1756698670080,-826.34,0.00017296,2]
[382662786,1756698670093,-151.0,0.000173,2]
[382662787,1756698670102,-1000.0,0.00017321,2]
[382662788,1756698670111,-328.41013557,0.00017321,2]
[382662789,1756698670124,-1000.0,0.00017321,2]
[382662790,1756698670133,-1000.0,0.00017321,2]
[382662791,1756698670143,-1000.0,0.00017321,2]
[382662792,1756698670152,-1000.0,0.00017321,2]
[382662793,1756698670162,-922.0,0.00017352,2]
[382662794,1756698670173,-922.0,0.00017386,2]
[382662795,1756698670183,-500.0,0.00017387,3]
[382662796,1756698670193,-1493.0,0.00017387,3]
[382662797,1756698670202,-480.0,0.00017391,2]
[382662798,1756698670211,-523.29,0.00017391,2]
[382662799,1756698670222,-697.94,0.00017391,2]
[382662800,1756698670233,-925.83,0.00017391,2]
[382662801,1756698670242,-403.99787653,0.00017391,2]
[382662802,1756698670251,-480.0,0.00017391,2]
[382662803,1756698670262,-2147.31,0.00017391,2]
[382662804,1756698670271,-480.0,0.00017391,2]
[382662805,1756698670281,-480.0,0.00017391,2]
[382662806,1756698670290,-511.69,0.00017391,2]
[382662807,1756698670300,-522.98,0.00017391,2]
[382662808,1756698670309,-594.8,0.00017391,2]
[382662809,1756698670319,-1144.22,0.00017391,2]
[382662810,1756698670328,-480.0,0.00017391,2]
[382662811,1756698670337,-647.07,0.00017391,2]
[382662812,1756698670347,-480.0,0.00017391,2]
[382662813,1756698670356,-523.13,0.00017391,2]
[382662814,1756698670367,-480.0,0.00017391,2]
[382662815,1756698670376,-1985.9,0.00017391,2]
[382662816,1756698670386,-614.68,0.00017391,2]
[382662817,1756698670395,-529.5,0.00017391,2]
[382662818,1756698670404,-1673.09,0.00017391,2]
[382662819,1756698670415,-480.0,0.00017391,2]
[382662820,1756698670424,-876.96,0.00017391,2]
[382662821,1756698670433,-480.0,0.00017395,2]
[382662822,1756698670443,-480.0,0.00017395,2]
[382662823,1756698670452,-480.0,0.00017395,2]
[382662824,1756698670462,-729.96,0.00017395,2]
[382662825,1756698670472,-156.76565963,0.00017395,2]
[382662826,1756698670482,-480.0,0.00017395,2]
[382662827,1756698670492,-480.0,0.00017395,2]
[382662828,1756698670501,-480.0,0.00017395,2]
[382662829,1756698670511,-480.0,0.00017395,2]
[382662830,1756698670522,-157.28301894,0.00017395,2]
[382662831,1756698670538,-322.71698106,0.00017395,2]
[382662832,1756698670548,-480.0,0.00017395,2]
[382662833,1756698670558,-480.0,0.00017395,2]
[382662834,1756698670568,-824.76,0.00017395,2]
[382662835,1756698670577,-480.0,0.00017395,2]
[382662836,1756698670587,-480.0,0.00017395,2]
[382662837,1756698670596,-480.0,0.00017395,2]
[382662838,1756698670607,-817.07,0.00017395,2]
[382662839,1756698670619,-480.0,0.00017395,2]
[382662840,1756698670629,-480.0,0.00017395,2]
[382662841,1756698670639,-852.22,0.00017395,2]
[382662842,1756698670648,-480.0,0.00017395,2]
[382662843,1756698670659,-480.0,0.00017395,2]
[382662844,1756698670668,-480.0,0.00017395,2]
[382662845,1756698670677,-480.0,0.00017395,2]
[382662846,1756698670687,-1177.63,0.00017395,2]
[382662847,1756698670696,-480.0,0.00017395,2]
[382662848,1756698670706,-480.0,0.00017395,2]
[382662849,1756698670716,-559.92,0.00017395,2]
[382662850,1756698670726,-480.0,0.00017395,2]
[382662851,1756698670735,-678.6,0.00017395,2]
[382662852,1756698670744,-480.0,0.00017395,2]
[382662853,1756698670753,-1119.48,0.00017395,2]
[382662854,1756698670763,-480.0,0.00017395,2]
[382662855,1756698670772,-480.0,0.00017395,2]
[382662856,1756698670781,-480.0,0.00017395,2]
[382662857,1756698670791,-480.0,0.00017395,2]
[382662858,1756698670800,-543.33,0.00017395,2]
[382662859,1756698670810,-480.0,0.00017395,2]
[382662860,1756698670819,-480.0,0.00017395,2]
[382662861,1756698670829,-740.21,0.00017395,2]
[382662862,1756698670839,-679.18,0.00017395,2]
[382662863,1756698670848,-583.03,0.00017395,2]
[382662864,1756698670857,-480.0,0.00017395,2]
[382662865,1756698670867,-305.10314767,0.00017395,2]
[382662866,1756698670878,-480.0,0.00017395,2]
[382662867,1756698670887,-591.25,0.00017395,2]
[382662868,1756698670897,-480.0,0.00017395,2]
[382662869,1756698670906,-480.0,0.00017395,2]
[382662870,1756698670915,-1190.69,0.00017395,2]
[382662871,1756698670925,-480.0,0.00017395,2]
[382662872,1756698670934,-480.0,0.00017395,2]
[382662873,1756698670943,-480.0,0.00017396,2]
[382662874,1756698670953,-480.0,0.00017396,2]
[382662875,1756698670963,-480.0,0.00017396,2]
[382662876,1756698670972,-480.0,0.00017396,2]
[382662877,1756698670982,-549.86,0.00017396,2]
[382662878,1756698670991,-480.0,0.00017397,2]
[382662879,1756698671001,-589.94,0.00017397,2]
[382662880,1756698671013,-153.23729,0.00017397,2]
[382662881,1756698671025,-480.0,0.00017397,2]
[382662882,1756698671036,-686.54,0.00017397,2]
[382662883,1756698671047,-578.74,0.00017397,2]
[382662884,1756698671057,-162.36346473,0.00017397,2]
[382662885,1756698671067,-574.56,0.00017397,2]
[382662886,1756698671076,-160.0,0.00017426,2]
[382662887,1756698671087,-922.0,0.00017432,2]
[382662888,1756698671097,-94.83673658,0.00017468,2]
[382662889,1756698671110,-227.49548881,0.00017468,2]
[382662890,1756698671121,-480.0,0.00017468,2]
[382662891,1756698671131,-775.81,0.00017468,2]
[382662892,1756698671141,-480.0,0.00017468,2]
[382662893,1756698671150,-1107.17,0.00017468,2]
[382662894,1756698671159,-360.38331713,0.00017469,2]
[382662895,1756698671172,-119.61668287,0.00017469,2]
[382662896,1756698671181,-888.74,0.00017469,2]
[382662897,1756698671191,-480.0,0.00017469,2]
[382662898,1756698671202,-480.0,0.00017469,2]
[382662899,1756698671212,-480.0,0.00017469,2]
[382662900,1756698671221,-542.74,0.00017469,2]
[382662901,1756698671231,-497.22568549,0.00017482,2]
[382662902,1756698671242,-424.77431451,0.00017482,2]
[382662903,1756698671252,-151.0,0.000175,2]
[382662904,1756698671261,-315.0,0.000175,2]
[382662905,1756698671271,-175.9,0.000175,2]
[382662906,1756698671280,-3327.01,0.00017548,2]
[382662907,1756698671289,-588.93,0.00017548,2]
[382662908,1756698671299,-1361.19,0.00017548,2]
[382662909,1756698671308,-4714.97,0.00017548,2]
[382662910,1756698671318,-740.37,0.00017548,2]
[382662911,1756698671327,-639.18924246,0.00017548,2]
[382662912,1756698671339,-463.57075754,0.00017548,2]
[382662913,1756698671349,-422.39601762,0.00017548,2]
[382662914,1756698671361,-3157.4254304,0.00017548,2]
[382662915,1756698671455,-1293.32855198,0.00017548,2]
[382662916,1756698671465,-4464.73768572,0.00017548,2]
[382662917,1756698671478,-156.31231428,0.00017548,2]
[382662918,1756698671487,-1926.67,0.00017548,2]
[382662919,1756698671496,-480.0,0.00017548,2]
[382662920,1756698671507,-541.23,0.00017548,2]
[382662921,1756698671516,-480.0,0.00017548,2]
[382662922,1756698671525,-1405.48,0.00017548,2]
[382662923,1756698671535,-2873.13382766,0.00017548,2]
[382662924,1756698673415,-59.30583065,0.00016438,2]
[382662925,1756698673447,2554.2765818,0.0001475,2]
[382662926,1756698673469,2445.7234182,0.0001475,2]
[382662927,1756698675010,-480.0,0.00014925,2]
[382662928,1756698675043,-480.0,0.00015199,2]
[382662929,1756698675071,-3080.01,0.00015546,2]
[382662930,1756698675118,-1919.99,0.00015546,2]
[382662931,1756698676197,5000.0,0.00015546,2]
[382662932,1756698676458,480.0,0.00014925,2]
[382662933,1756698676515,530.1,0.00015199,2]
[382662934,1756698677514,149.93,0.00015545,2]
[382662935,1756698677537,150.07,0.00015545,2]
[382662936,1756698679161,5000.0,0.00015546,2]
[382662937,1756698679412,480.0,0.00014924,2]
[382662938,1756698679534,480.0,0.00014925,2]
[382662939,1756698679642,480.0,0.00015198,2]
[382662940,1756698679776,480.0,0.00015199,2]
[382662941,1756698679949,480.0,0.00015472,2]
[382662942,1756698680027,480.0,0.00015473,2]
[382662943,1756698681341,480.0,0.00014924,2]
[382662944,1756698697139,-253.6953502,0.00015413,2]
[382662945,1756698731171,-305.05798126,0.00014924,2]
[382662946,1756698734659,-174.94201874,0.00014924,2]
[382662947,1756698734680,-53.60669449,0.00014924,2]
[382662948,1756698739215,-313.68341404,0.00014924,2]
[382662949,1756698742485,-226.81347349,0.00014924,2]
[382662950,1756698746886,-178.70780967,0.00014924,2]
[382662951,1756698748378,-239.43325579,0.00014924,2]
[382662952,1756698749873,-161.85535252,0.00014924,2]
[382662953,1756698749893,-55.27541031,0.00014925,2]
[382662954,1756698751025,1000.0,0.00014446,2]
[382662955,1756698752091,-227.52554716,0.00014925,2]
[382662956,1756698754798,-197.19904253,0.00014925,2]
[382662957,1756698754820,-14.08854393,0.00014925,2]
[382662958,1756698757847,-291.38211966,0.00014925,2]
[382662959,1756698761236,-174.52933641,0.00014925,2]
[382662960,1756698761263,-40.84859605,0.00014925,2]
[382662961,1756698763383,-334.2565755,0.00014925,2]
[382662962,1756698767188,666.0,0.00014505,2]
[382662963,1756698767898,-141.59482845,0.00014925,2]
[382662964,1756698767920,-122.8953502,0.00015198,2]
[382662965,1756698768778,8334.01,0.00014505,2]
[382662966,1756698768802,10000.01,0.00014505,2]
[382662967,1756698768826,10000.01,0.00014505,2]
[382662968,1756698768849,10000.01,0.00014505,2]
[382662969,1756698768871,10000.01,0.00014505,2]
[382662970,1756698768893,10000.01,0.00014505,2]
[382662971,1756698768917,10000.01,0.00014505,2]
[382662972,1756698768941,10000.01,0.00014505,2]
[382662973,1756698768964,10000.01,0.00014505,2]
[382662974,1756698768987,10000.01,0.00014505,2]
[382662975,1756698769018,20000.0,0.00014505,2]
[382662976,1756698840358,150.0,0.00027397,120]
[382662977,1756698882925,2619.16785404,0.0001611,6]
[382662978,1756698891719,5000.0,0.0001611,6]
[382662979,1756698900393,5000.0,0.0001611,6]
[382662980,1756698925011,1370.7050593,0.00013916,2]
[382662981,1756698947959,1370.7050593,0.00013916,2]
[382662982,1756698970803,1370.7050593,0.00013916,2]
[382662983,1756698986180,-267.87705765,0.00014057,2]
[382662984,1756698988289,-217.32031386,0.00014057,2]
[382662985,1756698993917,885.50768779,0.00013916,2]
[382662986,1756699016708,885.50768779,0.00013916,2]
[382662987,1756699039582,885.50768779,0.00013916,2]
[382662988,1756699062207,885.50768779,0.00013916,2]
[382662989,1756699085428,885.50768779,0.00013916,2]
[382662990,1756699101870,885.50768779,0.00013916,2]
[382662991,1756699125313,574.84869536,0.00013916,2]
[382662992,1756699125337,795.85636394,0.00013916,2]
[382662993,1756699129564,350.294803,0.00013635,2]
[382662994,1756699129955,350.294803,0.00013773,2]
[382662995,1756699130330,383.337175,0.00013954,2]
[382662996,1756699130673,536.672045,0.00013955,2]
[382662997,1756699131041,1325.77416367,0.00013956,2]
[382662998,1756699148520,1370.7050593,0.00013916,2]
[382662999,1756699170899,1370.7050593,0.00013916,2]
[382663000,1756699194315,1370.7050593,0.00013916,2]
[382663001,1756699217993,1370.7050593,0.00013916,2]
[382663002,1756699228546,194.9300286,0.00013471,2]
[382663003,1756699241928,1370.7050593,0.00013916,2]
[382663004,1756699248169,2699.003865,0.00013699,2]
[382663005,1756699252066,4364.6659878,0.00013465,2]
[382663006,1756699252088,5635.3340122,0.00013465,2]
[382663007,1756699260193,4364.6759878,0.00013465,2]
[382663008,1756699260218,10000.01,0.00013465,2]
[382663009,1756699260239,10000.01,0.00013465,2]
[382663010,1756699260468,4593.4006584,0.00013465,2]
[382663011,1756699264020,4742.20279572,0.00013916,2]
[382663012,1756699286566,664.40654588,0.00013916,2]
[382663013,1756699286588,4077.79624984,0.00013916,2]
[382663014,1756699295832,4742.20279572,0.00013916,2]
[382663015,1756699302348,159.0,0.00025,30]
[382663016,1756699311268,1180.01095444,0.00013916,2]
[382663017,1756699311298,2191.48678198,0.00013916,2]
[382663018,1756699319271,3371.49773642,0.00013916,2]
[382663019,1756699320532,4437.0254816,0.00013561,2]
[382663020,1756699320556,10000.01,0.00013561,2]
[382663021,1756699320577,1487.9790958,0.00013561,2]
[382663022,1756699334754,3371.49773642,0.00013916,2]
[382663023,1756699345522,5140.53316778,0.00013699,2]
[382663024,1756699345544,10000.01,0.00013699,2]
[382663025,1756699345567,10000.01,0.00013699,2]
[382663026,1756699345589,7020.65944032,0.00013699,2]
[382663027,1756699346401,2979.35055968,0.00013916,2]
[382663028,1756699346429,392.14717674,0.00013916,2]
[382663029,1756699365545,3371.49773642,0.00013916,2]
[382663030,1756699373966,3371.49773642,0.00013916,2]
[382663031,1756699389233,2864.86735042,0.00013916,2]
[382663032,1756699389255,506.630386,0.00013916,2]
[382663033,1756699397283,3371.49773642,0.00013916,2]
[382663035,1756699412785,3371.49773642,0.00013916,2]
[382663036,1756699415075,1069.587,0.00013699,2]
[382663037,1756699421282,1680.79714116,0.00013916,2]
[382663038,1756699421307,1690.70059526,0.00013916,2]
[382663039,1756699436646,3371.49773642,0.00013916,2]
[382663040,1756699445157,3371.49773642,0.00013916,2]
[382663041,1756699460576,1566.3139319,0.00013916,2]
[382663042,1756699460599,1805.18380452,0.00013916,2]
[382663043,1756699466175,-240.93046292,0.00014057,2]
[382663044,1756699468502,-239.46758942,0.00014057,2]
[382663045,1756699468577,3371.49773642,0.00013916,2]
[382663046,1756699470544,-290.83344746,0.00014057,2]
[382663047,1756699473414,3384.6877574,0.0001342,2]
[382663048,1756699475541,-305.1861253,0.00014057,2]
[382663049,1756699478161,-447.24107024,0.00014057,2]
[382663050,1756699483975,1438.64070166,0.00013916,2]
[382663051,1756699483998,409.19833942,0.00013916,2]
[382663052,1756699492160,1847.83904108,0.00013916,2]
[382663053,1756699492918,3147.16,0.00025,30]
[382663054,1756699508407,5000.0,0.0001611,6]
[382663055,1756699516376,5000.0,0.0001611,6]
[382663056,1756699532504,5000.0,0.0001611,6]
[382663057,1756699540981,5000.0,0.0001611,6]
[382663058,1756699556881,5000.0,0.0001611,6]
[382663059,1756699565432,5000.0,0.0001611,6]
[382663060,1756699582356,5981.16612517,0.00013916,2]
[382663061,1756699590543,1761.80649433,0.00013916,2]
[382663062,1756699590566,4219.35963084,0.00013916,2]
[382663063,1756699604124,-157.69980653,0.00014057,2]
[382663064,1756699606026,5780.65036916,0.00013916,2]
[382663065,1756699606048,200.51575601,0.00013916,2]
[382663066,1756699614397,5823.46631864,0.00013916,2]
[382663068,1756699630537,3976.02792535,0.00013916,2]
[382663069,1756699630563,1847.43839329,0.00013916,2]
[382663070,1756699654251,5823.46631864,0.00013916,2]
[382663071,1756699673316,666.0,0.00013438,2]
[382663072,1756699677079,1663.10528807,0.00013916,2]
[382663073,1756699677100,4160.36103057,0.00013916,2]
[382663074,1756699700278,5823.46631864,0.00013916,2]
[382663075,1756699723471,16.18265079,0.00013916,2]
[382663076,1756699723494,5807.28366785,0.00013916,2]
[382663077,1756699746666,4192.72633215,0.00013394,2]
[382663078,1756699746691,10000.01,0.00013394,2]
[382663079,1756699746717,10000.01,0.00013394,2]
[382663080,1756699746742,5130.58266725,0.00013394,2]
[382663081,1756699746915,4869.42733275,0.00013916,2]
[382663082,1756699746941,954.03898589,0.00013916,2]
[382663083,1756699748082,-1073.857834,0.00014057,2]
[382663084,1756699771123,4749.60848464,0.00013916,2]
[382663085,1756699782165,1000.0,0.00013393,2]
[382663086,1756699794019,3296.36252947,0.00013916,2]
[382663087,1756699794043,1453.24595517,0.00013916,2]
[382663088,1756699817421,4749.60848464,0.00013916,2]
[382663089,1756699825233,2247.75673325,0.00013916,2]
[382663138,1756699835810,-462.28076521,0.00014057,2]
[382663139,1756699835829,-299.46272656,0.00014057,2]
[382663140,1756699835862,-3987.86499287,0.00014057,2]
[382663141,1756699835872,-1370.7050593,0.00014199,2]
[382663142,1756699835882,-300.0,0.00014384,2]
[382663143,1756699835891,-300.0,0.00014384,2]
[382663144,1756699835900,-300.0,0.00014384,2]
[382663145,1756699835914,-1200.0,0.00014384,2]